Cogmind - Beta 13 @@@ ROGUE MODE // 2024.07.05 @ 14:01:46 Player: Pitifulpancake Result: Destroyed by Y-54 Guardian with Gatling Laser Performance ------------- Evolutions (4) 2000 Regions Visited (5) 1000 Robots Destroyed (67) 335 Value Destroyed (2239) 2239 Prototype IDs (4) 80 Alien Tech Used (0) 0 Bonus (724) 724 TOTAL SCORE: 6378 Bonus ------- High Alert Combat Kills 114 Follower Combat Kills 728 Friendly Fire -118 Cogmind --------- Core Integrity 0/850 Matter 300/300 Energy 270/379 System Corruption 9% Temperature Critical (563) Movement Hovering (115) Ox1 Location -6/Extension Parts ------- > --- POWER (2) -------- Cold-Fission Reactor > --- PROPULSION (4) --- Hovering Gravmag-Aluminum Exoskeleton > --- UTILITY (6) ------ Armored Scrap Engine Large Storage Unit Advanced Signal Interpreter Advanced Melee Analysis Suite Hacking Suite > --- WEAPON (3) ------- Gauss Rifle Hypervelocity Gauss Rifle Burst Thermal Shock Construct/G > --- INVENTORY (15) --- Armored Wheel Advanced Melee Analysis Suite Reaction Control System Cloaking Device Hardened Heavy Armor Plating Layered Medium Armor Plating Makeshift System Shield Component Analysis Suite Great Maul Katana Scythe Axe Heavy Pick Heavy Pick Peak State ------------ > --- POWER ------------ Cold-Fission Reactor > --- PROPULSION ------- Hovering Gravmag-Aluminum Exoskeleton > --- UTILITY ---------- Armored Scrap Engine Large Storage Unit Advanced Signal Interpreter Advanced Melee Analysis Suite Hacking Suite > --- WEAPON ----------- Phasing Sabre Heavy Pick Heavy Pick > --- INVENTORY -------- Armored Wheel Medium Storage Unit Advanced Melee Analysis Suite Reaction Control System Hardened Heavy Armor Plating Layered Medium Armor Plating Makeshift System Shield Component Analysis Suite Gauss Rifle Gauss Rifle Hypervelocity Gauss Rifle Katana Scythe Axe [Rating: 83] Favorites ----------- Power Constructs Engine Subdweller Power Source Power Core Light Nuclear Core Reactor Constructs Propulsion Constructs Treads Light Treads Wheel Subdweller Monowheel Hover Unit Constructs Utility Armored Scrap Engine Device Armored Scrap Engine Storage Large Storage Unit Processor Advanced Signal Interpreter Hackware Hacking Suite Protection Makeshift Light Armor Plating Weapon Heavy Pick Energy Gun Constructs Ballistic Gun Barrage Gun Ballistic Cannon Assault Cannon Launcher Shock Bomb Launcher Special Weapon Remote Datajack Slashing Weapon Scythe Piercing Weapon Heavy Pick Build | -11 -10 -10 -8 -6 -6 ------- Run | Yrd Mat Sub Rec Fac Ext Slots Evolved 8 | . . . . 8 . Power 1 | . . . . 1 . Propulsion 2 | . . . . 2 . Utility 4 | . . . . 4 . Weapon 1 | . . . . 1 . Parts Attached 66 | 6 1 13 6 35 5 Power 9 | 1 . 2 . 6 . Engine 5 | 1 . 2 . 2 . Core 4 | . . . . 4 . Reactor . | . . . . . . Propulsion 6 | 2 . 2 2 . . Treads 2 | 2 . . . . . Leg . | . . . . . . Wheel 4 | . . 2 2 . . Hover . | . . . . . . Flight . | . . . . . . Utility 21 | 1 1 6 1 12 . Device 6 | . . 2 1 3 . Storage 6 | 1 1 1 . 3 . Processor 4 | . . . . 4 . Hackware 1 | . . . . 1 . Protection 4 | . . 3 . 1 . Artifact . | . . . . . . Weapon 30 | 2 . 3 3 17 5 Energy Gun 2 | 1 . 1 . . . Energy Cannon . | . . . . . . Ballistic Gun 16 | 1 . 2 1 9 3 Ballistic Cannon 1 | . . . 1 . . Launcher 2 | . . . 1 1 . Special Weapon 1 | . . . . 1 . Impact Weapon . | . . . . . . Slashing Weapon 4 | . . . . 2 2 Piercing Weapon 4 | . . . . 4 . Special Melee Weapon . | . . . . . . Unidentified Prototypes . | . . . . . . Parts Lost 16 | . . 2 . 13 1 Power 6 | . . 1 . 5 . Propulsion 2 | . . 1 . . 1 Utility 3 | . . . . 3 . Weapon 5 | . . . . 5 . Highest Loss Streak 5 | . . 2 . 5 1 To Critical Strikes . | . . . . . . Average Slot Usage (%) 72 | . 98 98 71 62 65 Engine 5 | . 14 13 2 4 . Core 4 | . . . 10 3 6 Treads 5 | . 28 24 . . . Wheel 5 | . . 2 16 2 . Hover 1 | . . . . 2 6 Device 10 | . . 8 13 11 6 Storage 6 | . 26 11 . 6 6 Processor 5 | . . . . 7 13 Hackware 1 | . . . . 2 6 Protection 1 | . . 8 . . . Energy Gun 4 | . 14 14 1 2 . Energy Cannon 1 | . . . . 2 1 Ballistic Gun 9 | . 14 14 16 4 9 Ballistic Cannon 1 | . . . 4 . . Piercing Weapon 3 | . . . . 6 5 Naked Turns . | . . . . . . Heaviest Build 55 | 14 17 22 22 50 55 Greatest Support 70 | 40 40 40 40 70 58 Greatest Overweight (x) 4 | . . 1 4 1 1 Average Overweight (x) . | . . . . . . Largest Inventory Capacity 15 | 8 8 8 8 15 15 Average Capacity 10 | 6 8 6 5 13 15 Most Carried 15 | 6 7 8 8 15 15 Average Carried 9 | 3 6 6 5 11 14 Final Capacity 15 | 8 8 8 5 15 15 Final Carried 15 | 6 7 8 5 15 15 Scrap Engine Consumption 148 | . . . 48 67 33 Constructs Created 8 | . . . 3 4 1 Constructs Modified 34 | . . . 5 25 4 Class Distribution -------------------- 74% | Construct 21% | Mutant Dominant Class ---------------- Mutant | -10/Materials Mutant | -10/Subcaves Construct | -8/Recycling Construct | -6/Factory Construct | -6/Extension Resources | -11 -10 -10 -8 -6 -6 ----------- Run | Yrd Mat Sub Rec Fac Ext Matter Collected 2216 | 219 19 290 200 1032 456 Remotely . | . . . . . . Salvage Created 4004 | . 19 355 858 1739 1033 Parts 145 | . 1 21 24 75 24 Haulers Intercepted 1 | . . . . . 1 Recyclers Shooed 5 | . . . 4 1 . Parts Field Recycled . | . . . . . . Retrieved Matter . | . . . . . . Parts Self-Destructed 13 | . . 13 . . . Prevented . | . . . . . . Kills | -11 -10 -10 -8 -6 -6 ------- Run | Yrd Mat Sub Rec Fac Ext Combat Hostiles Destroyed 45 | . . 6 2 28 9 Melee 15 | . . . . 9 6 Guns 24 | . . 6 2 13 3 Cannons 6 | . . . . 6 . Classes Destroyed 15 | . 1 3 3 6 2 Worker 1 | . . . . 1 . Builder 3 | . . . 1 2 . Tunneler 1 | . 1 . . . . Hauler 1 | . . . . . 1 Recycler 10 | . . . 5 3 2 Mechanic 1 | . . . . 1 . Turret 2 | . . 2 . . . Watcher 2 | . . . . 1 1 Swarmer 13 | . . . . 13 . Grunt 12 | . . . . 8 4 Brawler 1 | . . . . . 1 Sentry 8 | . . . 2 3 3 Programmer 4 | . . . . 4 . Artisan 1 | . . 1 . . . Subdweller 6 | . . 6 . . . Savage 2 | . . . . . 2 Best Kill Streak 5 | . 1 2 3 5 3 Combat Bots Only 4 | . . 2 2 4 2 Max Kills in Single Turn 2 | . 1 1 1 2 1 Gunslinging . | . . . . . . Exploded . | . . . . . . Melee 1 | . . . . 1 1 Uniques/NPCs Destroyed . | . . . . . . Combat | -11 -10 -10 -8 -6 -6 -------- Run | Yrd Mat Sub Rec Fac Ext Hostile Shots Fired 621 | . . 77 28 385 131 Missed 216 | . . 22 8 141 45 Damage Taken 6951 | . . 768 282 4481 1420 Core 1069 | . . 149 70 690 160 Absorbed by Shields 38 | . . . . . 38 Regen/Repaired (Parts) 2655 | . . . 93 2226 336 Core Remaining (%) 56 | 100 . . 12 . . Volleys Fired 186 | . 2 36 28 89 31 Largest 3 | . 2 2 2 3 3 Hottest 123 | . 60 88 72 123 110 Shots Fired 405 | . 4 72 40 204 85 Gun 324 | . 4 72 30 142 76 Cannon 72 | . . . 1 62 9 Launcher 9 | . . . 9 . . Special . | . . . . . . Kinetic 274 | . 2 36 31 132 73 Thermal 88 | . . 30 . 46 12 Explosive . | . . . . . . Electromagnetic 43 | . 2 6 9 26 . Robot Hit Streak 22 | . 2 19 22 10 13 Robot Miss Streak 6 | . 1 5 2 6 5 Penetration Max 2 | . . . . 1 2 Secondary Targets 1 | . . . . . 1 Max Gunslinging Chain 1 | . . . . . 1 Shots Hit Robots 254 | . 2 37 21 127 67 Core Hits 136 | . 1 17 12 74 32 Critical Kills 5 | . . . . 1 4 Critical Parts Destroyed 5 | . . . . 2 3 Critical Strikes 16 | . . . . 7 9 Destroy 10 | . . . . 3 7 Sever 1 | . . . . . 1 Impale 5 | . . . . 4 1 Melee Attacks 138 | . . . . 114 24 Impact . | . . . . . . Slashing 34 | . . . . 20 14 Piercing 104 | . . . . 94 10 Sneak Attacks 11 | . . . . 6 5 Combat Hostiles 1 | . . . . . 1 Follow-up Attacks 19 | . . . . 15 4 Damage Inflicted 6571 | . 25 601 690 3187 2068 Guns 2845 | . 25 601 353 1006 860 Cannons 894 | . . . 25 684 185 Explosions 308 | . . . 308 . . Melee 2494 | . . . . 1497 997 Ramming 30 | . . . 4 . 26 Kinetic 2589 | . 10 255 378 1154 792 Thermal 983 | . . 301 . 429 253 Explosive . | . . . . . . Electromagnetic 475 | . 15 45 308 107 . Impact . | . . . . . . Slashing 730 | . . . . . 730 Piercing 1764 | . . . . 1497 267 Highest Corruption 9 | . . . . 9 9 Average Corruption 8 | . . . . 8 9 Corruption Purged . | . . . . . . Corruption Blocked 8 | . . . . 8 . Effects 78 | . . . . 49 29 Message Errors 20 | . . . . 13 7 Matter Fused 16 | . . . . 12 4 Heat Flow Errors 9 | . . . . 5 4 Energy Discharges 12 | . . . . 6 6 Parts Rejected 1 | . . . . 1 . Data Loss (minor) 12 | . . . . 7 5 Data Loss (major) 3 | . . . . 3 . Misfires 1 | . . . . 1 . Alerts 1 | . . . . . 1 Weapon Failures 3 | . . . . 1 2 Overload Shots . | . . . . . . Overflow Damage 160 | . . . 13 92 55 Projectiles . | . . . . . . Explosions 13 | . . . 13 . . Melee 147 | . . . . 92 55 Knockbacks 7 | . . . . 6 1 Impact 1 | . . . . . 1 Kinetic 6 | . . . . 6 . Secondary . | . . . . . . Self-Inflicted Damage 15 | . . . 2 . 13 Shots . | . . . . . . Rammed 3 | . . . 2 . 1 Targets Rammed 3 | . . . 2 . 1 Kicked . | . . . . . . Crushed . | . . . . . . Highest Temperature 545 | . . 43 134 355 545 Average Temperature 115 | . . 16 69 139 159 Received Heat Transfer 1614 | . . 243 126 834 411 Effects 10 | . . . . 7 3 Shutdowns 2 | . . . . 1 1 Energy Bleed 3 | . . . . 3 . Interference 3 | . . . . 3 . Damage (major) 2 | . . . . . 2 Siege Activations . | . . . . . . Robots Corrupted . | . . . . . . Combat Hostiles . | . . . . . . Parts Fried 3 | . . . 2 1 . Impact Corruptions . | . . . . . . Robots Melted . | . . . . . . Combat Hostiles . | . . . . . . Parts Melted 6 | . . 2 . 1 3 Heat Transferred 2798 | . . 375 . 1114 1309 Parts Sabotaged . | . . . . . . Parts Stolen . | . . . . . . Parts Stripped . | . . . . . . Power Chain Reactions . | . . . . . . Alert | -11 -10 -10 -8 -6 -6 ------- Run | Yrd Mat Sub Rec Fac Ext Peak Influence 834 | . 5 . 225 574 834 Initial 350 | . . . 189 350 264 Average 228 | . . . 81 279 395 Maximum Alert Level 3 | . . . 1 2 3 Low Security (%) 41 | 100 100 . 93 21 . Level 1 46 | . . . 6 66 62 Level 2 11 | . . . . 11 33 Level 3 . | . . . . . 3 Level 4 . | . . . . . . Level 5 . | . . . . . . High Security . | . . . . . . Max Security . | . . . . . . Squads Dispatched 12 | . . . . 9 3 Investigation 3 | . . . . 2 1 Extermination 4 | . . . . 4 . Reinforcement 4 | . . . . 3 1 Assault 1 | . . . . . 1 Garrison . | . . . . . . Intercept . | . . . . . . Searches Triggered 1 | . . . . 1 . Construction Impeded 2 | . . . . 1 1 Haulers Reinforced . | . . . . . . Active Scanning Responses . | . . . . . . Cargo Convoy Interrupts . | . . . . . . Stealth | -11 -10 -10 -8 -6 -6 --------- Run | Yrd Mat Sub Rec Fac Ext Distress Signals 6 | . . . . 3 3 Communications Jammed . | . . . . . . Distress Signals . | . . . . . . Times Spotted 115 | . . 24 2 52 37 Peak Tracking Total 11 | . . 2 2 8 11 Tactical Retreats 13 | . . 2 . 10 1 Traps | -11 -10 -10 -8 -6 -6 ------- Run | Yrd Mat Sub Rec Fac Ext Traps Triggered 3 | . . 2 . 1 . Indirectly . | . . . . . . Trap Hack Attempts . | . . . . . . Triggered . | . . . . . . Disarmed . | . . . . . . Reprogrammed . | . . . . . . Reused . | . . . . . . Traps Extracted . | . . . . . . Installed . | . . . . . . Triggered . | . . . . . . Machines | -11 -10 -10 -8 -6 -6 ---------- Run | Yrd Mat Sub Rec Fac Ext Machines Disabled 8 | . . 2 . 3 3 Max in Single Turn 1 | . . 1 . 1 1 Machines Repaired . | . . . . . . Machines Dismantled . | . . . . . . Machines Sabotaged . | . . . . . . Overloaded Fab Kills . | . . . . . . Hacking | -11 -10 -10 -8 -6 -6 --------- Run | Yrd Mat Sub Rec Fac Ext Machines Accessed 31 | . . . 11 12 8 Terminals 19 | . . . 6 5 8 Fabricators 2 | . . . . 2 . Repair Stations 2 | . . . . 2 . Recycling Units 6 | . . . 5 1 . Scanalyzers 2 | . . . . 2 . Garrison Access . | . . . . . . Total Hacks 70 | . . . 31 26 13 Successful 32 | . . . 14 10 8 Failed 38 | . . . 17 16 5 Catastrophic 10 | . . . 5 3 2 Database Lockouts . | . . . . . . Manual 19 | . . . 11 4 4 Terminals 45 | . . . 20 12 13 Fabricators 3 | . . . . 3 . Repair Stations 4 | . . . . 4 . Recycling Units 13 | . . . 11 2 . Scanalyzers 5 | . . . . 5 . Garrison Access . | . . . . . . Terminal Hacks 17 | . . . 6 3 8 Record 4 | . . . 3 1 . Open Door 5 | . . . . . 5 Open DSF 1 | . . . . 1 . Branch Access Points 1 | . . . 1 . . Alert Level 4 | . . . 2 . 2 Unreport Threat 1 | . . . . . 1 Locate Traps 1 | . . . . 1 . Fabricator Hacks 1 | . . . . 1 . Network Status 1 | . . . . 1 . Repair Station Hacks 3 | . . . . 3 . Scan Component 1 | . . . . 1 . Repair 1 | . . . . 1 . Refit 1 | . . . . 1 . Recycling Unit Hacks 10 | . . . 8 2 . Process 2 | . . . 1 1 . Report Inventory 4 | . . . 4 . . Retrieve Matter 2 | . . . 1 1 . Retrieve Components 2 | . . . 2 . . Scanalyzer 1 | . . . . 1 . Insert Component 1 | . . . . 1 . Garrison Access Hacks . | . . . . . . Unauthorized Hacks . | . . . . . . Terminals . | . . . . . . Fabricators . | . . . . . . Repair Stations . | . . . . . . Recycling Units . | . . . . . . Scanalyzers . | . . . . . . Garrison Access . | . . . . . . Data Cores Recovered . | . . . . . . Used . | . . . . . . Hacking Detections 25 | . . . 10 11 4 Full Trace Events 10 | . . . 7 2 1 Feedback Events 1 | . . . . 1 . Corruption 1 | . . . . 1 . Feedback Blocked . | . . . . . . Robot Schematics Acquired . | . . . . . . Robots Built . | . . . . . . Authchips . | . . . . . . Time . | . . . . . . Total Robot Build Rating . | . . . . . . Part Schematics Acquired . | . . . . . . Parts Built . | . . . . . . Authchips . | . . . . . . Time . | . . . . . . Total Part Build Rating . | . . . . . . Parts Repaired 1 | . . . . 1 . Time 38 | . . . . 38 . Parts Recycled . | . . . . . . Recycled Matter 70 | . . . 21 49 . Retrieved Matter 49 | . . . . 49 . Retrieved Components 2 | . . . 2 . . Parts Scanalyzed 1 | . . . . 1 . Part Schematics Acquired . | . . . . . . Parts Damaged 1 | . . . . 1 . Bothacking | -11 -10 -10 -8 -6 -6 ------------ Run | Yrd Mat Sub Rec Fac Ext Used RIF Installer . | . . . . . . Robots Hacked . | . . . . . . Non-combat . | . . . . . . Combat . | . . . . . . Robot Hacks Applied . | . . . . . . Relay Couplers Released . | . . . . . . Fabnet Peak Effective % . | . . . . . . Robots Rewired 11 | . . . . . 11 Allies Hacked . | . . . . . . Hacks Repelled . | . . . . . . Allies | -11 -10 -10 -8 -6 -6 -------- Run | Yrd Mat Sub Rec Fac Ext Total Allies 19 | . . . . . 19 Largest Group 14 | . . . . . 14 Highest-Rated Group 400 | . . . . . 400 Highest-Rated Ally 159 | . . . . . 159 Total Orders . | . . . . . . Ally Attacks 159 | . . . . . 159 Total Damage 3179 | . . . . . 3179 Kills 27 | . . . . . 27 Allies Corrupted . | . . . . . . Allies Melted 1 | . . . . . 1 Intel | -11 -10 -10 -8 -6 -6 ------- Run | Yrd Mat Sub Rec Fac Ext Robot Analysis Total . | . . . . . . Derelict Logs Recovered . | . . . . . . Drone Launches . | . . . . . . Drone Recoveries . | . . . . . . Exploration | -11 -10 -10 -8 -6 -6 ------------- Run | Yrd Mat Sub Rec Fac Ext Turns Passed 6266 | 78 318 954 1260 2870 786 Spaces Moved 4117 | 43 36 506 864 1917 751 Core 12 | 4 . . 8 . . Treads 507 | 39 36 432 . . . Legs 216 | . . . 3 213 . Wheels 1702 | . . 74 853 775 . Hover 1680 | . . . . 929 751 Flight . | . . . . . . Fastest Speed 50 | 50 160 110 107 71 71 Average Speed 106 | 149 160 156 120 99 71 Slowest Speed 250 | 160 160 240 250 134 115 Overloaded Moves . | . . . . . . Propulsion Burnouts . | . . . . . . Robots Hopped . | . . . . . . Cave-ins Triggered 4 | . . . . 4 . Exploration Rate (%) 41 | 4 7 24 98 40 75 Regions Visited 5 Branch Regions 3 Pre-discovered Areas . | . . . . . . Known Exits Taken 1 | . . . . 1 . Unknown Exits Taken 4 | 1 1 1 1 . . Scrap Searched 1 | . . 1 . . . Spaces Dug 63 | . . . . 62 1 Terrain Destroyed 67 | . . . 1 65 1 Melee 56 | . . . . 55 1 Projectile 9 | . . . 1 8 . AOE . | . . . . . . Terrain Rammed . | . . . . . . Walls Destroyed . | . . . . . . Machines Disabled . | . . . . . . Actions | -11 -10 -10 -8 -6 -6 --------- Run | Yrd Mat Sub Rec Fac Ext Total 5432 | 54 292 601 1046 2536 903 Wait 762 | . 253 24 129 341 15 Move 4112 | 42 35 505 863 1916 751 Hop . | . . . . . . Pick Up 47 | 6 1 6 4 26 4 Fast Attach 43 | 6 1 9 4 21 2 Attach 10 | . . . 1 9 . Detach 9 | . . 1 1 7 . Swap 13 | . . 4 1 5 3 Drop 60 | . . 16 13 24 7 Fire 186 | . 2 36 28 89 31 Melee 103 | . . . . 85 18 Ram 3 | . . . 2 . 1 Kick . | . . . . . . Crush . | . . . . . . Escape Stasis 13 | . . . . 13 . Rewire 71 | . . . . . 71 Trap . | . . . . . . Miscellaneous . | . . . . . . Route ------- -11/Scrapyard -10/Materials -10/Subcaves -8/Recycling -6/Factory (discovered 2 exits: [*Low] / *Ext) -6/Extension History --------- Turn | Location | Event 48 | -11/Scrapyard | Discovered new exit (range 15) 79 | -11/Scrapyard | Entered Materials 313 | -10/Materials | Build established: Mutant 348 | -10/Materials | Discovered new exit (range 6) 397 | -10/Materials | Entered Subcaves 411 | -10/Subcaves | A swath of the cavern ceiling suddenly collapsed 442 | -10/Subcaves | Ambushed by Subdwellers from Twisted Machinery 781 | -10/Subcaves | Shifting Twisted Machinery released Mak. System Shield 794 | -10/Subcaves | Shifting Twisted Machinery released Multitool 808 | -10/Subcaves | Shifting Twisted Machinery released Barrage Gun 810 | -10/Subcaves | Shifting Twisted Machinery released Mak. Light Armor Plating 892 | -10/Subcaves | Discovered new exit (range 9) 1194 | -10/Subcaves | Core integrity fell below 50% 1351 | -10/Subcaves | Entered Recycling 1361 | -8/Recycling | Found Scrap Engine 1703 | -8/Recycling | Build established: Construct 2017 | -8/Recycling | Core integrity fell below 20% 2475 | -8/Recycling | Discovered new exit (range 16) 2611 | -8/Recycling | Entered Factory 2611 | -6/Factory | Evolved 8 slots: Power x1, Propulsion x2, Utility x4, Weapon x1 2627 | -6/Factory | Identified exit to DSF 2736 | -6/Factory | Repaired Scythe 2961 | -6/Factory | Search patrols dispatched 3003 | -6/Factory | Discovered new exit (range 11) 3797 | -6/Factory | Spotted B-75 Beast 3992 | -6/Factory | Crushed by falling debris 4037 | -6/Factory | Lost 5 parts (2p1u2w) 4040 | -6/Factory | Crushed by falling debris 4091 | -6/Factory | Crushed by falling debris 4097 | -6/Factory | Crushed by falling debris 4097 | -6/Factory | Core integrity fell below 50% 5368 | -6/Factory | Core integrity fell below 20% 5470 | -6/Factory | Discovered new exit (range 14) 5480 | -6/Factory | Identified exit to Extension 5481 | -6/Factory | Entered Extension 5628 | -6/Extension | Rescued a captive Derelict 5628 | -6/Extension | Rescued a captive Derelict 5677 | -6/Extension | Rescued a captive Derelict 5685 | -6/Extension | Rescued a captive Derelict 5705 | -6/Extension | Rescued a captive Derelict 5706 | -6/Extension | Rescued a captive Derelict 5741 | -6/Extension | Rescued A7 5761 | -6/Extension | Spotted B-75 Beast 5786 | -6/Extension | Rescued a captive Derelict 5791 | -6/Extension | Spotted B-75 Beast 5799 | -6/Extension | Allies destroyed B-75 Beast 5807 | -6/Extension | Allies destroyed B-75 Beast 5834 | -6/Extension | Lost 4 allies 6081 | -6/Extension | Disrupted transfer network 6181 | -6/Extension | First assault squad dispatched 6267 | -6/Extension | Destroyed by Y-54 Guardian with Gatling Laser Last Messages --------------- 06260_ OI-23H(g) destroyed. 06260_ U-05 Engineer destroyed. 06261_ Acquired 10 matter. 06262_ Hovering Gravmag-Aluminum Exoskeleton destroyed. 06262_ Hovering Gravmag-Aluminum Exoskeleton core remains intact and functional. 06263_ Slug penetrates G-50 Soldier. 06263_ G-50 Soldier destroyed. 06263_ Switching to secondary target: G-67 Veteran. 06263_ HV Slug penetrates Wall. 06264_ Acquired 10 matter. 06267_ Scrap Engine modifies Fission-Deuterium Core: Storage +109, Supply +15, Max Integrity +113 Renamed Cold-Fission Reactor. 06267_ Overheating: Gauss Rifle damaged (-15). 06267_ Overheating: Burst Thermal Shock Construct/G damaged (-4). Map ----- +----------------------------------------------------+ | | | | | | | | | | | | | | | | | | | | | | | | | | | | | | | | | | | ??????????????????######?????????????????????????? | | ?????????????????## #????????????????????????? | | ??????????????#### ######??????????????????? | | ############### d [% * #??????????????????? | | %+ ! [ #??????????????????? | | ;g%% ! = ! #??????????????????? | | "" # !=% = *% #??????????????????? | | """ # =%=/ =Y%% #??????????????????? | | "T #"## g@#####??????????????????? | | """ ####### [x[% ???????????????????? | | "" !%==gg*% ???????????????? | | / *!Y* ???????????? | | ######## #??????????? | | ###### #?????????###???????????? | | + C #???????????????????????? | | [ ####### #########;#???????????????????????? | | %[% #?????#####??????? % ???????????????????????? | | ! %#????????????????? ???????????????????????? | | =#????????????????? ???????????????????????? | | % #?????????????????"T"???????????????????????? | | ##"##"#????????????????###???????????????????????? | | ?###?##??????????????????????????????????????????? | | ?????????????????????????????????????????????????? | | ?????????????????????????????????????????????????? | | ?????????????????????????????????????????????????? | | ?????????????????????????????????????????????????? | | ?????????????????????????????????????????????????? | | ?????????????????????????????????????????????????? | | ?????????????????????????????????????????????????? | | ?????????????????????????????????????????????????? | | ?????????????????????????????????????????????????? | | ?????????????????????????????????????????????????? | | ?????????????????????????????????????????????????? | +----------------------------------------------------+ Best States ------------- Heat Dissipation 56 Coolant Potential 50 Energy Generation 31 Energy Capacity 548 Matter Stores 300 Matter Capacity 300 Sight Range 16 Terrain Scan Density 210 Corruption Block 8 Armor Coverage 200 Evasion (%) 55 Melee Accuracy 8 Recoil Reduction 2 Energy Filtering 30 Particle Charging 20 Offensive Hacking 10 Item Schematics ----------------- None Robot Schematics ------------------ None Fabricated ------------ Nothing Alien Tech Used ----------------- None Achievements -------------- Prison Break Challenges ------------ None Game ------ Seed EncryptedGravitonNanovents Manual? 0 Play Time 01:25:55 Cumulative 21.0 hours Start 2024.04.21 @ 15:39:58 End 2024.07.05 @ 14:01:46 Sessions 8 Manual Loads 0 Difficulty Rogue Special Mode None Game No. 15 Rogue 15 Adventurer 0 Explorer 0 Win Type - Total 0 Types 0/0/0/0/0/0/0/0/0 Lore% 19 Gallery% 23 Achievement% 20 Wizard Run 0 Options --------- Layout 1 ASCII 0 Keyboard 0 Movement Mouse Keybinds 0 Fullscreen 1 Font 32/SmallcapsGlow Map View 50x35 Zoom Use 0% Tactical HUD 1 Map Filters NONE Filters NONE Steam 1 RUN: 7d08ed5c-2be0-4bce-971f-104a98f772b8